bitfinex/quotes_ETHUSD_20241101
["timestamp","ask_amount","ask_price","bid_price","bid_amount"]
[1730471632888,3.688775,2572.0,2571.5,4.43877]
[1730471633089,3.688775,2572.0,2571.5,0.55]
[1730471633410,5.33488,2572.3,2571.6,3.61643495]
[1730471633411,1.4472,2572.3,2571.6,3.61643495]
[1730471633582,1.4472,2572.3,2571.9,0.55]
[1730471633787,2.87588418,2572.6,2571.9,0.55]
[1730471634011,2.87588418,2572.6,2572.1,0.55]
[1730471634012,5.42171,2572.6,2572.1,0.55]
[1730471634305,5.4218,2572.6,2572.1,0.55]
[1730471634498,0.54218,2572.5,2572.1,0.55]
[1730471634806,0.54218,2572.5,2571.9,0.55]
[1730471635117,3.88754,2572.4,2571.9,4.43815]
[1730471635323,3.88754,2572.4,2571.9,0.55]
[1730471635486,3.88753,2572.4,2571.9,0.55]
[1730471635985,7.77507,2572.4,2571.9,0.55]
[1730471636183,3.88753,2572.4,2571.9,0.55]
[1730471636383,0.388753,2572.3,2571.9,4.43817]
[1730471636704,8.42181,2572.6,2571.9,4.43817]
[1730471636705,6.88748,2572.4,2571.9,0.55]
[1730471637583,3.0,2572.4,2571.9,0.55]
[1730471637806,1.5346,2572.6,2571.5,0.55]
[1730471637976,3.88787,2572.1,2571.7,0.55]
[1730471638175,0.388787,2572.0,2571.7,0.55]
[1730471638706,0.388787,2572.0,2571.7,4.43846]
[1730471638898,6.88772,2572.2,2571.8,0.55]
[1730471639271,3.0,2572.4,2571.8,0.55]
[1730471639473,3.0,2572.4,2572.0,0.55]
[1730471640508,3.88758,2572.3,2571.8,4.43824]
[1730471641184,3.0,2572.4,2572.0,0.55]
[1730471641385,4.576305,2572.3,2571.8,4.43824]
[1730471641683,4.576305,2572.3,2571.6,7.50496495]
[1730471641684,3.88809,2572.0,2571.5,0.55]
[1730471641884,3.0,2572.1,2571.5,0.55]
[1730471642133,4.576315,2572.3,2571.8,3.88824]
[1730471642134,3.688735,2572.3,2571.8,3.88824]
[1730471642404,3.688735,2572.3,2571.9,0.55]
[1730471642604,3.0,2572.5,2571.8,3.88832]
[1730471642783,3.0,2572.3,2571.9,4.43809]
[1730471643490,3.88667,2572.9,2572.2,3.8876]
[1730471643491,3.0,2572.7,2572.2,3.8876]
[1730471643688,3.0,2572.7,2572.3,0.55]
[1730471644016,3.0,2572.6,2572.3,0.55]
[1730471644181,0.688701,2572.5,2572.1,0.55]
[1730471644381,0.688701,2572.5,2572.3,0.55]
[1730471645283,0.688701,2572.5,2572.2,0.55]
[1730471646416,5.36987,2572.9,2572.5,0.55]
[1730471646817,3.88668,2572.9,2572.5,0.55]
[1730471647048,5.38918,2573.4,2572.6,5.28332]
[1730471647261,5.38911,2573.4,2572.9,3.88659]
[1730471647557,0.538911,2573.4,2572.8,8.05312495]
[1730471647725,1.5032,2573.8,2573.0,0.55]
[1730471647926,3.88546,2573.7,2573.2,3.88618]
[1730471648256,1.5032,2573.8,2573.3,0.55]
[1730471648458,5.36895,2574.1,2573.3,0.55]
[1730471648756,3.88559,2573.7,2573.3,0.55]
[1730471649052,0.388559,2573.6,2573.3,0.55]
[1730471649664,1.4623,2573.5,2573.3,0.55]
[1730471649851,0.388559,2573.6,2573.3,3.88599]
[1730471650036,3.88515,2573.9,2573.4,3.8859]
[1730471650224,1.4623,2574.0,2573.5,0.55]
[1730471650541,9.23246,2574.0,2573.5,0.55]
[1730471650747,9.23246,2574.0,2573.2,3.8861]
[1730471650748,3.88543,2573.8,2573.3,0.55]
[1730471650963,3.88561,2573.6,2573.2,0.55]
[1730471651328,7.77133,2573.6,2573.2,0.55]
[1730471651641,7.77133,2573.6,2573.0,3.88651]
[1730471651642,3.0,2573.6,2573.0,3.88651]
[1730471651965,3.0,2573.6,2573.1,3.88634]
[1730471652162,3.0,2573.6,2573.2,3.88606]
[1730471652366,1.07706,2573.7,2573.3,5.41055]
[1730471652862,1.07706,2573.7,2573.4,0.55]
[1730471653157,3.88466,2574.3,2573.8,0.55]
[1730471653596,3.88466,2574.3,2574.0,0.55]
[1730471653794,9.26072,2574.7,2574.0,0.55]
[1730471653958,5.37663,2574.7,2574.2,0.55]
[1730471654291,3.88455,2574.3,2574.2,0.55]
[1730471654492,3.88455,2574.3,2574.0,0.55]
[1730471654797,3.88485,2574.1,2573.8,0.55]
[1730471654947,3.88485,2574.1,2573.7,0.55]
[1730471655293,3.88473,2574.2,2573.7,4.43544]
[1730471655592,0.688473,2574.1,2573.8,3.88522]
[1730471655812,0.688473,2574.1,2573.8,3.8853]
[1730471655954,3.0,2574.5,2574.1,0.55]
[1730471656297,3.0,2574.2,2573.9,0.55]
[1730471656583,3.885,2574.0,2573.6,0.55]
[1730471656785,3.88523,2573.9,2573.6,0.55]
[1730471657003,3.88583,2573.5,2573.0,5.31769]
[1730471657351,3.88569,2573.6,2573.1,3.88635]
[1730471658191,4.273923,2573.8,2573.2,3.88619]
[1730471658557,4.273923,2573.8,2573.3,4.43598]
[1730471658898,3.88546,2573.7,2573.3,0.55]
[1730471659080,0.8159383,2573.6,2573.3,0.55]
[1730471659566,0.8159383,2573.6,2573.1,7.50278495]
[1730471659772,3.88577,2573.5,2573.2,0.55]
[1730471659968,3.88597,2573.4,2573.1,0.55]
[1730471660663,3.0,2573.6,2573.1,0.55]
[1730471661018,3.0,2573.6,2573.3,0.55]
[1730471661228,3.0,2573.9,2573.5,0.55]
[1730471661518,0.841968,2573.9,2573.7,0.55]
[1730471661721,1.54,2574.4,2573.7,0.55]
[1730471661722,3.88496,2574.1,2573.7,0.55]
[1730471662386,3.885,2574.0,2573.7,0.55]
[1730471662590,3.88516,2573.9,2573.6,0.55]
[1730471662785,3.88544,2573.8,2573.6,0.55]
[1730471663009,3.0,2574.0,2573.8,0.55]
[1730471663286,3.0,2574.2,2573.8,0.55]
[1730471664297,7.573231,2574.2,2573.8,4.43528]
[1730471665309,3.88492,2574.1,2573.7,3.88539]
[1730471665661,0.688461,2574.2,2573.9,3.88515]
[1730471665812,0.688461,2574.2,2574.0,0.55]
[1730471666704,3.8844,2574.4,2574.0,0.55]
[1730471666898,3.88458,2574.3,2574.0,0.55]
[1730471667106,3.8844,2574.4,2574.0,0.55]
[1730471667331,3.8844,2574.4,2574.0,4.43497]
[1730471667607,3.8844,2574.4,2573.9,3.88506]
[1730471667608,6.8844,2574.4,2574.2,0.55]
[1730471668104,4.1306333,2574.4,2574.2,0.55]
[1730471668303,3.88455,2574.3,2574.2,0.55]
[1730471668905,8.0150433,2574.4,2574.2,0.55]
[1730471669105,8.0150433,2574.4,2574.0,0.55]
[1730471669848,4.1306333,2574.4,2573.9,0.55]
[1730471670148,3.88473,2574.2,2573.9,0.55]
[1730471671522,7.76938,2574.3,2573.9,0.55]
[1730471671717,3.88469,2574.3,2573.9,4.43511]
[1730471671932,3.0,2574.6,2574.2,0.55]
[1730471672106,1.4017,2575.0,2574.4,0.55]
[1730471672107,3.88374,2574.9,2574.4,0.55]
[1730471672313,4.412364,2574.8,2574.4,4.43427]
[1730471672623,3.88402,2574.7,2574.4,0.55]
[1730471672944,3.88416,2574.6,2574.4,0.55]
[1730471673330,3.88409,2574.6,2574.4,0.55]
[1730471673534,3.88409,2574.6,2574.2,0.55]
[1730471673741,3.88447,2574.4,2574.1,0.55]
[1730471674048,3.88431,2574.5,2574.1,4.43484]
[1730471674410,3.88431,2574.5,2574.1,0.55]
[1730471674610,0.4412634,2574.6,2574.1,0.55]
[1730471674858,4.3253734,2574.6,2574.1,4.43471]
[1730471675213,4.3253734,2574.6,2574.3,0.55]
[1730471675412,0.4412634,2574.6,2574.1,0.55]
[1730471675613,3.88312,2575.3,2574.8,3.88379]
[1730471675921,3.8829,2575.4,2574.9,0.55]
[1730471676118,3.8829,2575.4,2575.1,0.55]
[1730471676734,1.4017,2575.7,2575.3,4.43301]
[1730471676735,5.28421,2575.7,2575.3,4.43301]
[1730471676937,0.528421,2575.6,2575.3,0.55]
[1730471677133,4.411041,2575.6,2575.3,0.55]
[1730471678754,0.528421,2575.6,2575.2,4.43318]
[1730471678917,4.411131,2575.6,2575.2,0.55]
[1730471679419,3.88275,2575.5,2575.2,0.55]
[1730471679772,0.4411171,2575.4,2575.2,0.55]
[1730471680949,0.4411171,2575.4,2575.3,0.55]
[1730471681140,3.8824,2575.8,2575.3,4.43297]
[1730471681345,3.88222,2575.9,2575.5,0.55]
[1730471681946,3.88229,2575.8,2575.5,0.55]
[1730471682147,3.88175,2576.2,2575.3,0.55]
[1730471682466,3.88239,2575.8,2575.3,0.55]
[1730471682781,3.88248,2575.7,2575.3,4.43303]
[1730471683077,3.88248,2575.7,2575.3,0.55]
[1730471683844,3.8823,2575.8,2575.3,4.43295]
[1730471684071,3.8823,2575.8,2575.4,3.88285]
[1730471684386,3.88298,2575.4,2575.0,1.4641]
[1730471684684,3.88313,2575.3,2574.8,3.88372]
[1730471684877,7.76628,2575.3,2574.8,3.88372]
[1730471685054,3.88319,2575.2,2574.8,3.88372]
[1730471685259,3.8834,2575.1,2574.7,1.5056]
[1730471685576,0.776632,2575.2,2574.8,3.88371]
[1730471685785,0.776632,2575.2,2574.9,4.4336]
[1730471686172,0.776632,2575.2,2574.9,0.55]
[1730471686350,0.776632,2575.2,2574.8,0.55]
[1730471686552,0.4659792,2575.1,2574.8,4.43369]
[1730471687082,0.4659792,2575.1,2574.8,4.43376]
[1730471687386,4.3493292,2575.1,2574.8,0.55]
[1730471687677,0.4659792,2575.1,2574.8,4.43367]
[1730471687844,0.4659792,2575.1,2574.8,0.55]
[1730471688048,4.3493992,2575.1,2574.8,0.55]
[1730471688284,4.31843992,2575.0,2574.7,0.55]
[1730471688871,1.5111,2574.2,2573.8,1.54582353]
[1730471689094,1.5111,2574.2,2573.4,1.5304]
[1730471689095,3.88519,2573.9,2573.4,1.5304]
[1730471689597,3.88519,2573.9,2573.4,5.41625]
[1730471689793,3.88506,2574.0,2573.4,5.41629]
[1730471689950,5.39581,2574.2,2573.5,3.88566]
[1730471690150,3.88493,2574.1,2573.5,3.88566]
[1730471690648,3.88501,2574.0,2573.4,5.41622]
[1730471691186,7.77015,2574.0,2573.5,0.55]
[1730471691483,3.88523,2573.9,2573.5,0.55]
[1730471692178,3.8851,2574.0,2573.5,0.55]
[1730471693057,3.8852,2573.9,2573.5,0.55]
[1730471693801,3.88533,2573.8,2573.5,0.55]
[1730471694172,3.0,2573.9,2573.5,0.55]
[1730471694496,3.88512,2574.0,2573.5,0.55]
[1730471694796,3.0,2573.9,2573.1,0.40480129]
[1730471694982,0.3,2573.8,2573.1,1.4984]
[1730471695185,3.88602,2573.4,2573.1,1.4984]
[1730471695494,3.88601,2573.4,2573.1,1.4984]
[1730471696261,3.88601,2573.4,2573.0,0.55]
[1730471696487,3.88601,2573.4,2573.0,4.43649]
[1730471696768,6.88578,2573.5,2573.0,4.43649]
[1730471697078,3.88591,2573.4,2573.0,0.55]
[1730471697373,3.88619,2573.3,2572.9,0.55]
[1730471697582,3.88621,2573.2,2572.9,0.55]
[1730471697792,3.59097227,2573.5,2572.6,3.61454804]
[1730471697793,3.88639,2573.1,2572.6,3.61454804]
[1730471698098,3.88661,2573.0,2572.5,5.28755]
[1730471698472,3.88636,2573.1,2572.5,5.28747]
[1730471698801,3.59097227,2573.5,2573.0,1.4003]
[1730471698802,11.36266227,2573.5,2573.0,1.4003]
[1730471698961,3.88592,2573.4,2573.0,1.4003]
[1730471699163,3.88523,2573.9,2573.5,0.55]
[1730471699392,5.32876,2574.1,2573.5,0.55]
[1730471699565,5.32876,2574.1,2573.4,3.88588]
[1730471699566,5.32876,2574.1,2573.7,0.55]
[1730471699766,3.88463,2574.3,2573.7,0.55]
[1730471700087,3.88435,2574.5,2573.9,0.55]
[1730471700274,7.7675,2574.9,2574.3,0.55]
[1730471700476,3.88418,2574.6,2574.3,0.55]
[1730471700686,3.88418,2574.6,2574.2,0.55]
[1730471701032,7.76839,2574.6,2574.2,0.55]
[1730471701296,3.88432,2574.5,2574.2,0.55]
[1730471701501,3.55574459,2576.2,2575.7,0.55]
[1730471701676,1.5317,2576.2,2575.7,4.43233]
[1730471702002,3.88228,2575.8,2575.7,0.55]
[1730471702318,0.776433,2575.8,2575.5,3.88265]
[1730471702472,5.41348,2576.2,2575.6,0.55]
[1730471702676,3.88183,2576.1,2575.6,0.55]
[1730471702901,3.88221,2575.9,2575.4,0.55]
[1730471703974,3.0,2576.0,2575.6,0.55]
[1730471704304,0.841349,2576.0,2575.8,0.55]
[1730471704476,0.841349,2576.0,2575.7,0.55]
[1730471704672,0.841349,2576.0,2575.6,0.55]
[1730471704877,0.7723189,2575.9,2575.6,0.55]
[1730471706712,0.7723189,2575.9,2575.6,4.43257]
[1730471707037,0.7723189,2575.9,2575.6,0.55]
[1730471707539,0.7723189,2575.9,2575.6,4.43252]
[1730471707702,4.5317,2576.2,2575.6,4.43252]
[1730471707904,8.41341,2576.2,2575.6,4.43252]
[1730471708113,8.41341,2576.2,2575.7,3.8824]
[1730471708610,8.41341,2576.2,2575.8,0.55]
[1730471708801,3.0,2576.0,2575.8,0.55]
[1730471709001,9.64293,2576.2,2575.7,3.88234]
[1730471709230,9.64293,2576.2,2575.8,0.55]
[1730471709639,5.7612,2576.2,2575.8,4.43227]
[1730471709865,1.2295,2576.2,2575.8,0.55]
[1730471710138,6.88153,2576.4,2575.8,0.55]
[1730471710919,1.4552,2576.5,2575.8,2.0476]
[1730471711238,1.4552,2576.5,2576.0,4.43184]
[1730471711447,1.4552,2576.5,2576.0,0.55]
[1730471711739,5.33645,2576.5,2575.9,0.55]
[1730471712041,1.4412,2576.8,2576.3,3.61454804]
[1730471712205,3.88048,2577.0,2576.4,0.55]
[1730471712406,5.32165,2577.1,2576.4,0.55]
[1730471712623,3.88057,2577.0,2576.4,0.55]
[1730471712825,5.32165,2577.1,2576.4,0.55]
[1730471712826,0.920222,2576.9,2576.4,0.55]
[1730471713028,0.920222,2576.9,2576.4,4.43136]
[1730471713232,0.920222,2576.9,2576.4,5.94137]
[1730471713507,1.4412,2577.1,2576.6,0.55]
[1730471713738,5.32161,2577.1,2576.5,0.55]
[1730471714565,3.88054,2577.0,2576.5,0.55]
[1730471714752,3.0,2577.0,2576.5,0.55]
[1730471715668,3.0,2576.8,2576.5,0.55]
[1730471715843,0.688073,2576.7,2576.5,0.55]
[1730471716051,0.688073,2576.7,2576.1,3.88172]
[1730471716052,3.88078,2576.8,2576.2,4.43166]
[1730471716250,3.0,2576.9,2576.4,0.55]
[1730471717254,3.0,2576.4,2575.8,5.38938]
[1730471717439,3.0,2576.4,2575.8,5.38929]
[1730471717645,1.4278,2576.8,2576.2,3.88168]
[1730471717646,0.688131,2576.3,2576.2,3.88168]
[1730471717868,3.0,2576.7,2576.2,3.88168]
[1730471718068,1.4278,2576.8,2575.8,1.5071]
[1730471718386,1.41,2575.9,2574.8,1.5043]
[1730471718540,3.88359,2575.0,2574.5,1.5043]
[1730471718737,3.8838,2574.8,2574.2,3.88461]
[1730471718941,3.0,2574.9,2574.4,3.88433]
[1730471719378,3.0,2574.9,2574.3,3.88453]
[1730471719548,3.0,2575.1,2574.6,3.88401]
[1730471719875,1.41,2575.3,2574.8,3.88379]
[1730471719876,4.41,2575.3,2574.8,3.88379]
[1730471720087,6.88352332,2576.7,2574.3,3.88455]
[1730471720088,3.0,2575.5,2575.0,3.88337]
[1730471720260,0.836878,2575.4,2575.0,3.88337]
[1730471720582,0.836878,2575.4,2574.9,3.8836]
[1730471720742,3.0,2575.3,2574.9,3.88363]
[1730471721087,0.836878,2575.4,2575.0,0.55]
[1730471722410,0.836878,2575.4,2575.0,4.43339]
[1730471722582,3.0,2575.6,2575.2,0.55]
[1730471722779,3.0,2575.7,2575.2,4.4331]
[1730471723007,3.0,2575.7,2575.2,4.43309]
[1730471723193,3.0,2575.7,2575.2,8.31619]
[1730471723392,3.0,2575.7,2575.2,4.43309]
[1730471724116,3.837016,2575.7,2575.2,4.43317]
[1730471724320,3.88193,2576.1,2575.3,3.88304]
[1730471724615,3.88214,2575.9,2575.4,4.4328]
[1730471724790,3.88214,2575.9,2575.2,0.55]
[1730471724976,3.88214,2575.9,2575.5,0.55]
[1730471725817,3.0,2575.9,2575.5,4.43272]
[1730471726319,3.0,2575.9,2575.5,0.55]
[1730471726523,8.36955,2576.2,2575.7,0.55]
[1730471726682,3.88214,2575.9,2575.7,0.55]
[1730471726882,1.4933,2575.7,2574.3,1.4905]
[1730471727183,3.0,2575.3,2574.6,3.88401]
[1730471727384,3.88319,2575.2,2574.4,3.88428]
[1730471727601,3.0,2575.0,2574.7,3.88385]
[1730471727930,4.571819,2575.0,2574.5,3.88412]
[1730471728085,0.688319,2575.0,2574.6,3.88405]
[1730471728288,0.688319,2575.0,2574.5,3.88412]
[1730471728511,0.688319,2575.0,2574.6,3.88402]
[1730471728732,0.688319,2575.0,2574.6,0.55]
[1730471728931,0.688319,2575.0,2574.6,4.43408]
[1730471729430,1.4933,2575.7,2574.5,3.88412]
[1730471729431,6.88298,2575.4,2575.0,0.55]
[1730471729639,3.0,2575.5,2575.2,0.55]
[1730471729998,5.37585,2575.7,2575.3,3.88303]
[1730471729999,1.4933,2575.7,2575.3,3.88303]
[1730471730339,3.0,2575.8,2575.0,0.07766153]
[1730471730340,3.0,2575.5,2575.4,0.55]
[1730471730500,6.88274,2575.5,2575.4,0.55]
[1730471731437,7.959277,2575.5,2575.4,0.55]
[1730471731633,4.076537,2575.5,2575.2,0.55]
[1730471731930,7.959297,2575.5,2575.2,0.55]
[1730471732135,7.959297,2575.5,2575.0,4.43348]
[1730471732452,7.959297,2575.5,2575.4,0.55]
[1730471732799,7.959297,2575.5,2575.4,0.64971986]
[1730471733540,7.959297,2575.5,2575.4,0.09971986]
[1730471733693,3.88289,2575.4,2574.9,1.3991]
[1730471733894,3.88307,2575.3,2574.8,3.88378]
[1730471734124,3.88326,2575.2,2574.7,5.36204]
[1730471734310,5.0671087,2575.4,2574.8,3.88372]
[1730471734522,3.88312,2575.3,2574.8,3.88372]
[1730471735121,3.88312,2575.3,2574.8,0.55]
[1730471735320,3.88327,2575.2,2574.9,0.10022689]
[1730471735632,4.68977387,2575.3,2575.0,0.55]
[1730471735831,3.88329,2575.2,2575.0,0.55]
[1730471736019,3.88329,2575.2,2575.1,0.65002405]
[1730471736279,6.88329,2575.2,2575.1,0.65002405]
[1730471736439,8.30735826,2575.2,2575.1,0.65002405]
[1730471737281,4.42406826,2575.2,2575.1,0.65002405]
[1730471737485,3.0,2575.2,2575.1,0.65002405]
[1730471738989,3.88228,2575.8,2575.2,5.85713]
[1730471739145,3.88266,2575.6,2575.2,1.974]
[1730471739484,3.88266,2575.6,2575.4,0.55]
[1730471739994,3.88266,2575.6,2575.5,0.64966525]
[1730471740201,6.88266,2575.6,2575.5,0.64966525]
[1730471741080,3.0,2575.7,2575.5,0.64966525]
[1730471741259,3.0,2575.7,2575.6,0.55]
[1730471741461,7.713581,2575.7,2575.6,0.64951935]
[1730471741661,3.831151,2575.7,2575.6,0.64951935]
[1730471742875,7.713581,2575.7,2575.6,0.64951935]
[1730471746595,9.107481,2575.7,2575.6,0.09951935]
[1730471746761,3.0,2575.0,2574.5,5.38778]
[1730471747092,3.88381,2574.8,2574.5,1.5036]
[1730471747294,3.88396,2574.7,2574.5,1.5036]
[1730471747493,6.88362,2575.0,2574.5,1.5036]
[1730471747700,3.0,2575.0,2574.5,1.5036]
[1730471747888,3.88386,2574.8,2574.5,1.5036]
[1730471748201,3.88401,2574.7,2574.2,5.38819]
[1730471748377,3.88401,2574.7,2574.2,9.2728]
[1730471748577,3.88401,2574.7,2574.2,5.38819]
[1730471748879,3.88401,2574.7,2574.3,3.88451]
[1730471749201,3.88386,2574.8,2574.3,3.88451]
[1730471749377,7.76778,2574.8,2574.4,0.55]
[1730471749578,3.88396,2574.7,2574.4,0.55]
[1730471749974,0.388396,2574.7,2574.0,3.8849]
[1730471750187,3.88433,2574.5,2574.0,3.88493]
[1730471750387,3.88433,2574.5,2574.1,0.08975238]
[1730471750902,7.76869,2574.5,2574.1,0.08975238]
[1730471751090,7.76867,2574.5,2574.1,0.08975238]
[1730471751293,3.88433,2574.5,2574.1,0.08975238]
[1730471751479,3.88433,2574.5,2574.2,0.55]
[1730471751796,3.88433,2574.5,2574.4,0.55]
[1730471752180,3.0,2574.6,2574.4,0.55]
[1730471752382,3.88424,2574.5,2574.2,0.55]
[1730471753010,3.88409,2574.6,2574.1,0.55]
[1730471753214,3.88431,2574.5,2574.1,4.43478]
[1730471753511,6.88406,2574.7,2574.3,0.55]
[1730471754007,6.88406,2574.7,2574.3,3.88448]
[1730471754305,6.88406,2574.7,2574.4,0.55]
[1730471754808,3.88365,2574.9,2574.4,4.5119352]
[1730471755012,3.0,2574.8,2574.6,0.55]
[1730471755412,3.88402,2574.7,2574.3,0.55]
[1730471755802,3.88402,2574.7,2574.3,4.43454]
[1730471756327,6.88386,2574.8,2574.3,4.43454]
[1730471757292,3.88401,2574.7,2574.3,0.55]
[1730471757622,3.88382,2574.8,2574.3,4.43446]
[1730471757815,3.0,2574.7,2574.3,4.43446]
[1730471758336,6.88395,2574.7,2574.3,4.43446]
[1730471758486,3.0,2574.7,2574.3,4.43446]
[1730471758819,6.88401,2574.7,2574.3,0.55]
[1730471759185,3.0,2574.7,2574.3,4.43447]
[1730471760288,3.0,2574.8,2574.5,0.55]
[1730471760497,3.88367,2574.9,2574.5,4.43424]
[1730471760895,3.88367,2574.9,2574.5,0.55]
[1730471760896,3.88364,2574.9,2574.5,0.55]
[1730471761186,3.8838,2574.8,2574.4,0.55]
[1730471761814,3.8838,2574.8,2574.4,4.43437]
[1730471762531,6.88365,2574.9,2574.4,4.43437]
[1730471762700,3.0,2574.9,2574.4,4.43437]
[1730471763027,6.88366,2574.9,2574.4,4.43437]
[1730471763227,3.0,2574.9,2574.6,0.55]
[1730471763632,3.0,2574.9,2574.5,3.88415]
[1730471763633,6.88365,2574.9,2574.5,0.55]
[1730471764216,3.8838,2574.8,2574.5,0.55]
[1730471764425,6.88374,2574.9,2574.5,0.55]
[1730471765408,6.88374,2574.9,2574.7,0.55]
[1730471765832,6.88374,2574.9,2574.8,0.63351458]
[1730471766644,8.102051,2574.9,2574.8,0.63351458]
[1730471767098,3.88448,2574.4,2573.9,5.39803]
[1730471767294,3.88452,2574.4,2573.9,1.5129]
[1730471767522,3.88461,2574.3,2574.0,0.08146955]
[1730471767734,3.88452,2574.4,2574.0,0.08146955]
[1730471767934,1.3939,2574.7,2574.0,0.08146955]
[1730471768118,3.8844,2574.4,2574.0,0.08146955]
[1730471768441,3.88485,2574.1,2574.0,0.08146955]
[1730471768600,8.29595,2574.1,2574.0,0.08146955]
[1730471768795,8.29595,2574.1,2572.9,1.4138]
[1730471768796,3.88616,2573.3,2572.9,1.4138]
[1730471769030,3.88622,2573.2,2573.0,0.40437538]
[1730471769241,3.88636,2573.1,2573.0,0.40437538]
[1730471769421,3.88636,2573.1,2572.5,1.4138]
[1730471769422,6.88636,2573.1,2572.5,1.4138]
[1730471769735,3.88667,2572.9,2572.5,1.4138]
[1730471769944,3.88651,2573.0,2572.5,1.4138]
[1730471770314,3.88668,2572.9,2572.5,1.4138]
[1730471770513,3.88654,2573.0,2572.6,0.55]
[1730471770715,1.07729,2573.0,2572.6,0.55]
[1730471771013,4.96393,2573.0,2572.6,0.55]
[1730471771452,3.88667,2572.9,2572.6,0.55]
[1730471771814,3.88689,2572.8,2572.1,1.4138]
[1730471772049,3.0,2572.8,2572.1,5.30158]
[1730471772547,3.0,2572.8,2572.1,1.4138]
[1730471772718,6.88683,2572.8,2572.1,1.4138]
[1730471772915,1.4971,2572.6,2571.8,5.37958]
[1730471773142,1.4971,2572.6,2571.9,3.88808]
[1730471773331,3.88734,2572.5,2571.8,1.4913]
[1730471773515,7.7747,2572.5,2571.8,1.4913]
[1730471773852,3.0,2572.4,2571.8,1.89551309]
[1730471774013,0.838444,2572.4,2571.8,5.37961]
[1730471774214,0.838444,2572.4,2571.8,1.4913]
[1730471774747,3.0,2572.3,2571.8,1.4913]
[1730471775118,3.0,2572.3,2571.9,0.07349155]
[1730471775651,3.0,2572.3,2572.0,0.55]
[1730471775960,3.0,2572.3,2572.1,0.07328824]
[1730471776260,3.0,2572.3,2572.2,0.55]
[1730471776618,3.0,2572.3,2572.2,0.62318659]
[1730471776959,3.7725884,2572.3,2572.2,0.62318659]
[1730471777250,7.6601584,2572.3,2572.2,0.62318659]
[1730471777659,3.7725884,2572.3,2572.2,0.62318659]
[1730471778225,5.38319,2572.9,2572.2,0.62318659]
[1730471778428,3.88644,2573.1,2572.4,0.55]
[1730471778665,5.38265,2573.3,2572.4,0.62773857]
[1730471778833,3.88615,2573.3,2572.7,0.55]
[1730471779030,3.88615,2573.3,2572.8,1.4556]
[1730471779231,7.77231,2573.3,2572.9,0.55]
[1730471779532,3.88638,2573.1,2572.9,0.62343467]
[1730471779863,3.88651,2573.0,2572.9,0.55]
[1730471780727,6.88651,2573.0,2572.9,0.55]
[1730471781129,3.0,2573.0,2572.9,0.55]
[1730471781462,3.88644,2573.1,2572.9,0.55]
[1730471781757,3.0,2573.0,2572.9,0.55]
[1730471782465,3.0,2573.2,2572.9,0.55]
[1730471782638,3.88607,2573.3,2572.7,0.55]
[1730471782845,3.88607,2573.3,2572.7,0.993703]
[1730471783350,3.88607,2573.3,2572.5,0.55]
[1730471783559,3.88659,2573.0,2572.5,0.55]
[1730471783756,3.88703,2572.7,2572.5,0.55]
[1730471783928,3.88728,2572.5,2572.1,1.4793]
[1730471784265,3.88728,2572.5,2571.7,1.4793]
[1730471784266,3.88742,2572.4,2571.7,1.4793]
[1730471784570,3.88757,2572.3,2571.7,2.44539174]
[1730471784862,3.88757,2572.3,2571.7,1.4793]
[1730471784863,3.88775,2572.2,2571.7,1.4793]
[1730471785066,3.88782,2572.2,2571.7,1.4793]
[1730471785448,3.88766,2572.3,2571.7,1.4793]
[1730471785652,3.88787,2572.1,2571.7,1.4793]
[1730471785849,3.88806,2572.0,2571.5,0.40432073]
[1730471786048,3.88835,2571.8,2571.5,0.40432073]
[1730471786287,3.88835,2571.8,2571.4,1.4246]
[1730471786779,3.88738,2572.5,2571.5,0.07777315]
[1730471787080,3.88794,2572.1,2571.5,1.4246]
[1730471787440,3.88794,2572.1,2571.6,0.55]
[1730471787769,0.388794,2572.0,2571.6,0.55]
[1730471787972,3.88767,2572.3,2571.6,0.55]
[1730471788171,6.88782,2572.2,2571.6,0.55]
[1730471788972,3.0,2572.2,2571.6,0.55]
[1730471789179,3.0,2572.3,2571.8,0.55]
[1730471789365,3.0,2572.4,2571.8,0.55]
[1730471789566,0.688738,2572.3,2571.8,0.55]
[1730471789871,8.30779,2572.6,2572.0,0.55]
[1730471790282,6.88719,2572.6,2572.0,0.55]
[1730471790577,3.88646,2573.1,2572.2,0.55]
[1730471790876,3.88676,2572.9,2572.2,0.55]
[1730471791077,3.88685,2572.8,2572.2,0.55]
[1730471791764,3.88707,2572.7,2572.0,0.55]
[1730471792164,7.77377,2572.8,2572.0,4.43792]
[1730471792364,3.88685,2572.8,2572.0,4.43792]
[1730471792780,3.88685,2572.8,2572.2,0.55]
[1730471793082,3.88713,2572.6,2572.0,0.55]
[1730471793485,5.0569927,2572.8,2572.0,0.55]
[1730471793795,5.0569627,2572.8,2572.2,0.55]